fUST/lending_fUST_20260328
["ID","MTS","AMOUNT","RATE_DAILY","PERIOD"]
[418968021,1774686640069,-151.0,0.00025312,2]
[418968022,1774686640078,-439.0,0.00025317,2]
[418968024,1774686640087,-368.0,0.00025317,2]
[418968026,1774686640096,-184.0,0.00025317,2]
[418968027,1774686640105,-500.0,0.00025343,2]
[418968028,1774686640114,-500.0,0.00025343,2]
[418968030,1774686640123,-500.0,0.00025343,2]
[418968031,1774686640132,-500.0,0.00025343,2]
[418968032,1774686640144,-500.0,0.00025343,2]
[418968033,1774686640153,-500.0,0.00025343,2]
[418968034,1774686640162,-500.0,0.00025343,2]
[418968035,1774686640171,-336.42596084,0.00025343,2]
[418968036,1774686640180,-154.989736,0.00025343,2]
[418968037,1774686640189,-154.989736,0.00025343,2]
[418968038,1774686640199,-154.989736,0.00025343,2]
[418968039,1774686640209,-154.989736,0.00025343,2]
[418968040,1774686640219,-2532.09245667,0.00025344,2]
[418968041,1774686640228,-258.461015,0.00025386,2]
[418968042,1774686640237,-121684.9155752,0.00025444,2]
[418968043,1774686640251,-684.23268755,0.00025444,2]
[418968044,1774686640262,-63084.3980128,0.00025444,2]
[418968054,1774686646028,-250.19743157,9.78e-05,2]
[418968055,1774686646037,-500.0,0.0001739,2]
[418968056,1774686646047,-500.0,0.00017664,2]
[418968057,1774686646056,-500.0,0.00017938,2]
[418968058,1774686646065,-500.0,0.00018212,2]
[418968059,1774686646074,-500.0,0.00018486,2]
[418968060,1774686646083,-500.0,0.0001876,2]
[418968061,1774686646092,-519.20750739,0.00019034,2]
[418968062,1774686646101,-3376.16285992,0.00025444,2]
[418968261,1774687832128,-1120.78017483,9.9e-05,10]
[418968265,1774687832164,-3879.21982517,9.9e-05,10]
[418968267,1774687832174,-368.86,0.0001,2]
[418968270,1774687832184,-560.0,0.0001,2]
[418968272,1774687832194,-250.0,0.00013081,2]
[418968273,1774687832204,-1000.0,0.00013699,2]
[418968275,1774687832214,-300.0,0.00018852,2]
[418968277,1774687832224,-1378.458746,0.00020635,2]
[418968279,1774687832233,-877.60796947,0.00021504,2]
[418968316,1774687838343,-807.0,0.00021504,10]
[418968318,1774687838353,-191.5915468,0.00021504,10]
[418968320,1774687838364,-435.0,0.00021504,10]
[418968323,1774687840941,-673.0,0.00021504,10]
[418968324,1774687840951,-722.0,0.00021504,10]
[418968325,1774687840961,-500.85077653,0.00021504,2]
[418968326,1774687840971,-2179.67568562,0.00021818,2]
[418968327,1774687840980,-204.82397891,0.00021917,2]
[418968328,1774687840990,-1000.0,0.00021918,2]
[418968329,1774687841000,-1000.0,0.00021918,2]
[418968330,1774687841010,-1000.0,0.00021918,2]
[418968331,1774687841019,-1000.0,0.00021918,2]
[418968332,1774687841029,-624.94877005,0.00021918,2]
[418968364,1774687843834,-375.05122995,0.00021918,2]
[418968365,1774687843844,-1000.0,0.00021918,2]
[418968366,1774687843853,-1000.0,0.00021918,2]
[418968367,1774687843863,-1000.0,0.00021918,2]
[418968368,1774687843872,-1000.0,0.00021918,2]
[418968369,1774687843882,-1000.0,0.00021918,2]
[418968370,1774687843891,-1000.0,0.00021918,2]
[418968371,1774687843900,-747.45138712,0.00021918,2]
[418968372,1774687843911,-252.54861288,0.00021918,2]
[418968373,1774687843921,-1000.0,0.00021918,2]
[418968374,1774687843931,-1000.0,0.00021918,2]
[418968376,1774687843941,-1000.0,0.00021918,2]
[418968377,1774687843950,-1000.0,0.00021918,2]
[418968378,1774687843960,-1000.0,0.00021918,2]
[418968379,1774687843972,-1000.0,0.00021918,2]
[418968380,1774687843982,-1000.0,0.00021918,2]
[418968381,1774687843992,-1000.0,0.00021918,2]
[418968382,1774687844001,-1000.0,0.00021918,2]
[418968383,1774687844010,-1000.0,0.00021918,2]
[418968384,1774687844019,-1000.0,0.00021918,2]
[418968385,1774687844029,-1000.0,0.00021918,2]
[418968386,1774687844038,-1000.0,0.00021918,2]
[418968387,1774687844048,-1000.0,0.00021918,2]
[418968388,1774687844057,-1000.0,0.00021918,2]
[418968389,1774687844067,-1000.0,0.00021918,2]
[418968390,1774687844076,-1000.0,0.00021918,2]
[418968391,1774687844085,-1000.0,0.00021918,2]
[418968392,1774687844094,-1000.0,0.00021918,2]
[418968393,1774687844104,-1000.0,0.00021918,2]
[418968394,1774687844116,-1000.0,0.00021918,2]
[418968395,1774687844127,-1000.0,0.00021918,2]
[418968396,1774687844136,-1000.0,0.00021918,2]
[418968397,1774687844146,-1000.0,0.00021918,2]
[418968398,1774687844156,-1000.0,0.00021918,2]
[418968399,1774687844166,-755.0930192,0.00021918,2]
[418968400,1774687844178,-244.9069808,0.00021918,2]
[418968401,1774687844187,-888.45505028,0.00021918,2]
[418968469,1774687846708,-1026.632,0.00021699,10]
[418968591,1774689032283,-281.6786739,0.00013159,10]
[418968593,1774689032295,-553.2,0.00013159,10]
[418968596,1774689032307,-469.74779629,0.00013159,10]
[418968600,1774689032339,-560.23240597,0.00013159,10]
[418968691,1774689038339,-943.065,0.00013159,10]
[418968713,1774689038535,-2192.07612384,0.00013159,10]
[418968715,1774689038545,-1000.0,0.00013699,2]
[418968717,1774689038554,-615.0,0.00013699,2]
[418968719,1774689038564,-1000.0,0.0001379,2]
[418968721,1774689038573,-300.0,0.00013807,2]
[418968723,1774689038583,-300.0,0.00013807,2]
[418968725,1774689038593,-300.0,0.00013807,2]
[418968727,1774689038602,-1045.75503136,0.00013809,2]
[418968729,1774689038611,-2126.23134524,0.00013909,2]
[418968731,1774689038620,-2605.77880651,0.00014209,2]
[418968733,1774689038629,-2782.08564436,0.00014309,2]
[418968735,1774689038639,-376.10175361,0.00014409,2]
[418968738,1774689038651,-2075.00998034,0.00014409,2]
[418968761,1774689043715,-507.28074827,0.00014409,2]
[418968762,1774689043724,-78.47291607,0.00014509,2]
[418968768,1774689046650,-926.33476705,0.00014509,2]
[418968769,1774689046756,-2129.89163696,0.00014509,2]
[418968770,1774689046766,-300.0,0.00014696,2]
[418968771,1774689046775,-300.0,0.00014696,2]
[418968772,1774689046794,-300.0,0.00014696,2]
[418968773,1774689046804,-300.0,0.00014696,2]
[418968774,1774689046814,-300.0,0.00014696,2]
[418968775,1774689046824,-300.0,0.00014696,2]
[418968776,1774689046835,-300.0,0.00014696,2]
[418968777,1774689046844,-300.0,0.00014696,2]
[418968778,1774689046854,-300.0,0.00014696,2]
[418968779,1774689046864,-300.0,0.00014696,2]
[418968780,1774689046873,-300.0,0.00014696,2]
[418968781,1774689046883,-300.0,0.00014696,2]
[418968782,1774689046892,-300.0,0.00014696,2]
[418968783,1774689046901,-300.0,0.00014696,2]
[418968784,1774689046911,-300.0,0.00014696,2]
[418968785,1774689046920,-500.0,0.00015357,2]
[418968786,1774689046930,-500.0,0.00015357,2]
[418968787,1774689046940,-4287.18397299,0.00016364,14]
[418968788,1774689046949,-1907.21622497,0.00016394,2]
[418968789,1774689046959,-521.30574985,0.00016493,2]
[418968790,1774689046968,-500.0,0.00016493,2]
[418968791,1774689046978,-500.0,0.00016493,2]
[418968792,1774689046987,-500.0,0.00016493,2]
[418968793,1774689046997,-500.0,0.00016493,2]
[418968794,1774689047007,-500.0,0.00016493,2]
[418968795,1774689047016,-500.0,0.00016493,2]
[418968796,1774689047026,-252.0296863,0.00016493,2]
[418968797,1774689047035,-500.0,0.00016493,2]
[418968798,1774689047045,-500.0,0.00016493,2]
[418968799,1774689047054,-500.0,0.00016493,2]
[418968800,1774689047064,-500.0,0.00016493,2]
[418968801,1774689047074,-482.4150704,0.00016493,2]
[418968802,1774689047084,-500.0,0.00016493,2]
[418968803,1774689047094,-1000.0,0.000165,2]
[418968804,1774689047103,-1000.0,0.000165,2]
[418968805,1774689047113,-1000.0,0.000165,2]
[418968806,1774689047123,-1000.0,0.000165,2]
[418968807,1774689047132,-1000.0,0.000165,2]
[418968808,1774689047141,-600.0,0.00016829,2]
[418968809,1774689047152,-684.0,0.00016874,2]
[418968810,1774689047162,-542.0,0.00016874,2]
[418968811,1774689047171,-1907.21622491,0.00018248,2]
[418968812,1774689047180,-1974.57552133,0.00018377,2]
[418968813,1774689047190,-2687.87919981,0.00018377,2]
[418968814,1774689047200,-720.0,0.00018512,2]
[418968815,1774689047210,-2175.04304302,0.00018629,2]
[418968816,1774689047219,-2405.62109367,0.00018629,2]
[418968817,1774689047229,-5140.14629889,0.00018637,24]
[418968818,1774689047239,-3464.09437489,0.00018935,2]
[418968819,1774689047248,-5367.66028687,0.00019773,29]
[418968820,1774689047258,-1907.21622491,0.00020102,2]
[418968821,1774689047267,-864.0,0.00020363,2]
[418968822,1774689047276,-3128.92991997,0.00020634,2]
[418968823,1774689047286,-4710.30232626,0.00020634,2]
[418968824,1774689047296,-205.21451842,0.000209,5]
[418968825,1774689047306,-1584.7383433,0.00021885,2]
[418968826,1774689047316,-273.9480767,0.00021885,2]
[418968827,1774689047325,-392.3837989,0.00021885,2]
[418968828,1774689047335,-500.0,0.00021917,2]
[418968829,1774689047344,-579.33748346,0.00021917,2]
[418968830,1774689047354,-1000.0,0.00021918,2]
[418968831,1774689047363,-23500.79124984,0.00021918,2]
[418968854,1774689307750,151.4,7.655e-05,120]
[418968974,1774690232410,-5000.0,9.801e-05,2]
[418968976,1774690232420,-559.0,9.9e-05,2]
[418968978,1774690232430,-304.99080989,0.0001,2]
[418968980,1774690232439,-152.49540493,0.0001,2]
[418968982,1774690232448,-304.99080989,0.00011976,7]
[418968984,1774690232458,-1000.0,0.00013699,2]
[418968986,1774690232467,-300.0,0.00013832,2]
[418968988,1774690232477,-300.0,0.00013832,2]
[418968990,1774690232486,-300.0,0.00013832,2]
[418968992,1774690232495,-300.0,0.00013832,2]
[418968993,1774690232504,-300.0,0.00013832,2]
[418968994,1774690232513,-300.0,0.00013832,2]
[418968995,1774690232524,-300.0,0.00013832,2]
[418968996,1774690232535,-300.0,0.00013832,2]
[418968997,1774690232544,-300.0,0.00013832,2]
[418968998,1774690232553,-300.0,0.00013832,2]
[418968999,1774690232563,-300.0,0.00013832,2]
[418969000,1774690232572,-300.0,0.00013832,2]
[418969001,1774690232582,-300.0,0.00013832,2]
[418969002,1774690232591,-300.0,0.00013832,2]
[418969003,1774690232601,-300.0,0.00013832,2]
[418969004,1774690232610,-304.99080989,0.00013952,7]
[418969005,1774690232620,-600.0,0.00014108,2]
[418969006,1774690232630,-720.0,0.00015518,2]
[418969007,1774690232639,-304.99080989,0.00015928,14]
[418969008,1774690232649,-864.0,0.0001707,2]
[418969010,1774690232658,-627.0,0.0001763,2]
[418969012,1774690232667,-406.0,0.0001763,2]
[418969014,1774690232677,-304.99080989,0.00017904,30]
[418969016,1774690232686,-4462.83612224,0.00018377,2]
[418969018,1774690232696,-7933.93088399,0.00018377,2]
[418969020,1774690232706,-500.0,0.00018481,2]
[418969023,1774690232715,-500.0,0.00018481,2]
[418969024,1774690232725,-398.24150704,0.00018481,2]
[418969026,1774690232734,-4063.27133152,0.00018482,2]
[418969028,1774690232744,-2099.55070083,0.00018482,2]
[418969170,1774690246877,-262.071,0.00018377,2]
[418969171,1774690246933,-2952.89766926,0.00018377,2]
[418969172,1774690246942,-522.0,0.00018481,5]
[418969173,1774690246951,-14.79231808,0.00018482,5]
[418969174,1774690269105,2000.0,8.9e-05,2]
[418969175,1774690269664,2000.0,8.8e-05,2]
[418969176,1774690270227,2000.0,8.7e-05,2]
[418969178,1774690270784,2000.0,8.6e-05,2]
[418969179,1774690271354,1651.77092423,8.5e-05,2]
[418969426,1774691432639,-276.36,7.196e-05,2]
[418969427,1774691432650,-641.013854,7.196e-05,2]
[418969428,1774691432659,-5000.0,7.269e-05,2]
[418969429,1774691432668,-523.0,7.269e-05,2]
[418969430,1774691432678,-362.68420886,9.701e-05,2]
[418969431,1774691432687,-500.0,0.00012329,20]
[418969432,1774691432696,-1000.0,0.00013699,2]
[418969433,1774691432705,-1000.0,0.00013699,2]
[418969434,1774691432715,-1513.02398572,0.00015,2]
[418969436,1774691432726,-2872.7285981,0.00015,2]
[418969438,1774691432736,-155.36016745,0.00015053,2]
[418969440,1774691432745,-2817.00761031,0.00015054,2]
[418969442,1774691432754,-1462.77767935,0.00015054,2]
[418969444,1774691432764,-194.14290579,0.00015054,2]
[418969446,1774691432775,-997.32222237,0.00015054,2]
[418969448,1774691432786,-799.53782429,0.00015054,2]
[418969450,1774691432795,-278.55133713,0.00015054,2]
[418969475,1774691439035,-151.0,0.00015054,2]
[418969476,1774691439046,-2321.94231504,0.00015054,2]
[418969477,1774691439055,-3291.24977853,0.00015054,2]
[418969478,1774691439065,-5851.11071739,0.00015054,2]
[418969479,1774691439074,-6866.92855027,0.00015054,2]
[418969480,1774691439084,-1287.93606886,0.00015054,2]
[418969481,1774691439094,-2012.40010759,0.00015054,2]
[418969482,1774691439103,-300.0,0.00015354,2]
[418969483,1774691439112,-300.0,0.00015354,2]
[418969484,1774691439122,-300.0,0.00015354,2]
[418969485,1774691439131,-300.0,0.00015354,2]
[418969486,1774691439140,-300.0,0.00015354,2]
[418969487,1774691439149,-300.0,0.00015354,2]
[418969488,1774691439159,-300.0,0.00015354,2]
[418969489,1774691439168,-300.0,0.00015354,2]
[418969490,1774691439178,-300.0,0.00015354,2]
[418969491,1774691439187,-300.0,0.00015354,2]
[418969492,1774691439196,-300.0,0.00015354,2]
[418969493,1774691439206,-300.0,0.00015354,2]
[418969494,1774691439215,-300.0,0.00015354,2]
[418969495,1774691439225,-300.0,0.00015354,2]
[418969496,1774691439234,-300.0,0.00015354,2]
[418969497,1774691439243,-600.0,0.00015354,2]
[418969498,1774691439252,-151.0,0.00015507,2]
[418969499,1774691439261,-7964.01180978,0.00015507,2]
[418969500,1774691439270,-3577.58685084,0.00015756,2]
[418969501,1774691439280,-520.975048,0.00015846,2]
[418969502,1774691439289,-151.0,0.00015846,2]
[418969503,1774691439298,-2897.85615493,0.00015846,2]
[418969504,1774691439307,-2239.37988335,0.00015846,2]
[418969505,1774691439317,-1433.20312535,0.00015846,2]
[418969506,1774691439326,-3224.70703203,0.00015846,2]
[418969507,1774691439335,-4389.18457137,0.00015846,2]
[418969508,1774691439344,-9142.36049592,0.0001603,2]
[418969509,1774691439353,-151.0,0.0001603,2]
[418969510,1774691439362,-3944.30421087,0.00016245,2]
[418969511,1774691439372,-151.0,0.00016438,2]
[418969512,1774691439381,-151.0,0.00016438,2]
[418969513,1774691439390,-500.0,0.00016551,2]
[418969514,1774691439400,-205.17314036,0.00016551,2]
[418969515,1774691439409,-500.0,0.00016551,2]
[418969516,1774691439418,-500.0,0.00016551,2]
[418969517,1774691439427,-500.0,0.00016551,2]
[418969518,1774691439436,-10391.57263409,0.00016552,2]
[418969519,1774691439445,-253.29156451,0.0001658,2]
[418969520,1774691439454,-151.0,0.0001668,2]
[418969521,1774691439463,-151.0,0.0001668,2]
[418969522,1774691439472,-151.0,0.0001668,2]
[418969523,1774691439483,-214.83577,0.0001668,2]
[418969524,1774691439493,-153.740356,0.0001668,2]
[418969525,1774691439502,-5727.07968888,0.00016813,2]
[418969526,1774691439511,-720.0,0.0001689,2]
[418969527,1774691439520,-151.0,0.00017013,2]
[418969528,1774691439530,-918.972497,0.00017114,2]
[418969529,1774691439539,-151.0,0.00017182,2]
[418969530,1774691439548,-151.0,0.00017182,2]
[418969531,1774691439557,-151.0,0.00017182,2]
[418969532,1774691439566,-5146.59253115,0.00017423,2]
[418969533,1774691439575,-151.0,0.00017558,2]
[418969534,1774691439584,-280.210125,0.00017558,2]
[418969535,1774691439593,-151.0,0.00017558,2]
[418969536,1774691439602,-151.0,0.00017558,2]
[418969537,1774691439611,-151.0,0.00017558,2]
[418969538,1774691439620,-301.0,0.0001763,2]
[418969539,1774691439629,-531.0,0.0001763,2]
[418969540,1774691439638,-151.0,0.00017761,2]
[418969541,1774691439647,-151.0,0.00017761,2]
[418969542,1774691439657,-151.0,0.00017761,2]
[418969543,1774691439666,-918.972497,0.00017834,2]
[418969544,1774691439675,-5005.98121787,0.00018,2]
[418969545,1774691439684,-151.0,0.00018087,2]
[418969546,1774691439693,-151.0,0.0001834,2]
[418969547,1774691439703,-151.0,0.0001834,2]
[418969548,1774691439712,-151.0,0.0001834,2]
[418969549,1774691439722,-500.0,0.00018376,2]
[418969550,1774691439731,-151.0,0.00018482,2]
[418969551,1774691439740,-500.0,0.00018482,2]
[418969552,1774691439749,-918.972497,0.00018555,2]
[418969553,1774691439759,-864.0,0.00018578,2]
[418969554,1774691439768,-151.0,0.00018696,2]
[418969555,1774691439777,-500.0,0.00018776,2]
[418969556,1774691439787,-294.2878491,0.00018777,2]
[418969557,1774691439796,-7714.0808877,0.00018777,2]
[418969558,1774691439805,-151.0,0.00018851,2]
[418969559,1774691439815,-50000.0,0.00019178,2]
[418969560,1774691439824,-50000.0,0.00019178,2]
[418969561,1774691439833,-918.972497,0.00019275,2]
[418969562,1774691439843,-1394.014815,0.0001942,2]
[418969563,1774691439852,-500.0,0.00019536,2]
[418969564,1774691439862,-304.99080989,0.0001988,60]
[418969565,1774691439871,-918.972497,0.00019996,2]
[418969566,1774691439880,-20000.0,0.0002,2]
[418969567,1774691439890,-1000.0,0.00020436,2]
[418969568,1774691439900,-918.972497,0.00020716,2]
[418969569,1774691439909,-3148.0,0.000209,2]
[418969570,1774691439918,-294.2878491,0.00020939,2]
[418969571,1774691439927,-1401.0,0.0002135,2]
[418969572,1774691439937,-642.676,0.0002135,2]
[418969573,1774691439945,-2197.0,0.0002135,2]
[418969574,1774691439955,-439.0,0.0002135,2]
[418969575,1774691439964,-551.0,0.0002135,2]
[418969576,1774691439973,-184.0,0.0002135,2]
[418969577,1774691439982,-152.49540492,0.00021425,120]
[418969578,1774691439992,-304.99080989,0.00021856,60]
[418969579,1774691440002,-1394.014815,0.00021857,2]
[418969580,1774691440011,-3148.0,0.000219,2]
[418969581,1774691440022,-691.0,0.00021918,2]
[418969582,1774691440032,-200.24052494,0.00021918,2]
[418969583,1774691440041,-691.0,0.00021918,2]
[418969584,1774691440051,-200.0,0.00021918,2]
[418969585,1774691440060,-691.0,0.00021918,2]
[418969586,1774691440070,-691.0,0.00021918,2]
[418969587,1774691440079,-339.0,0.00021918,2]
[418969588,1774691440088,-691.0,0.00021918,2]
[418969589,1774691440097,-339.0,0.00021918,2]
[418969590,1774691440107,-691.0,0.00021918,2]
[418969591,1774691440116,-339.0,0.00021918,2]
[418969592,1774691440124,-339.0,0.00021918,2]
[418969593,1774691440133,-691.0,0.00021918,2]
[418969594,1774691440142,-339.0,0.00021918,2]
[418969595,1774691440151,-691.0,0.00021918,2]
[418969596,1774691440160,-339.0,0.00021918,2]
[418969597,1774691440169,-691.0,0.00021918,2]
[418969598,1774691440180,-339.0,0.00021918,2]
[418969599,1774691440189,-691.0,0.00021918,2]
[418969600,1774691440198,-339.0,0.00021918,2]
[418969601,1774691440207,-691.0,0.00021918,2]
[418969602,1774691440216,-339.0,0.00021918,2]
[418969603,1774691440225,-691.0,0.00021918,2]
[418969605,1774691440234,-339.0,0.00021918,2]
[418969607,1774691440244,-700.6624497,0.00021918,2]
[418969608,1774691440253,-361.58808089,0.00021918,2]
[418969609,1774691440263,-412.18684022,0.00021918,2]
[418969610,1774691440272,-1000.0,0.00021918,2]
[418969611,1774691440282,-447.07804076,0.00021918,2]
[418969612,1774691440291,-1000.0,0.00021918,2]
[418969613,1774691440300,-1000.0,0.00021918,2]
[418969614,1774691440310,-1000.0,0.00021918,2]
[418969615,1774691440319,-1000.0,0.00021918,2]
[418969616,1774691440328,-988.53638687,0.00021918,2]
[418969617,1774691440338,-1000.0,0.00021918,2]
[418969618,1774691440347,-151.70724129,0.00021918,2]
[418969619,1774691440356,-353.37203473,0.00022065,2]
[418969620,1774691440365,-324.6913904,0.00022138,2]
[418969621,1774691440375,-196.1708088,0.00022143,2]
[418969622,1774691440384,-324.8269307,0.00022143,2]
[418969623,1774691440393,-324.8269307,0.00022143,2]
[418969624,1774691440402,-324.8269307,0.00022149,2]
[418969625,1774691440412,-324.8269307,0.00022149,2]
[418969626,1774691440421,-1721.2441038,0.00022244,2]
[418969627,1774691440430,-170.04107487,0.00022273,2]
[418969628,1774691440439,-151.72942493,0.00022273,2]
[418969629,1774691440449,-162.380719,0.00022273,2]
[418969630,1774691440458,-445.202766,0.00022273,2]
[418969631,1774691440467,-294.1845696,0.00022273,2]
[418969636,1774691441445,-858.99408768,0.00014904,2]
[418969641,1774691444615,-1115.48048082,0.00014904,2]
[418969642,1774691444731,-658.83621924,0.00014904,2]
[418969643,1774691444745,-1430.995,0.00014904,2]
[418969644,1774691444881,-382.35591491,0.00014904,2]
[418969648,1774691446983,-553.33829735,0.00014904,2]
[418969649,1774691446992,-151.0,0.00015054,2]
[418969650,1774691447001,-151.0,0.00015507,2]
[418969651,1774691447010,-62.03555665,0.00015846,2]
[418969652,1774691447022,-88.96444335,0.00015846,2]
[418969653,1774691447031,-151.0,0.00016552,2]
[418969654,1774691447041,-1663.6714304,0.00022273,2]
[418969655,1774691447050,-537.6845,0.00022273,2]
[418969656,1774691447060,-537.6845,0.00022273,2]
[418969657,1774691447069,-162.380719,0.00022273,2]
[418969658,1774691447078,-168.3888056,0.00022273,2]
[418969659,1774691447087,-174.61919141,0.00022273,2]
[418969660,1774691447097,-181.08010149,0.00022273,2]
[418969661,1774691447106,-187.78006525,0.00022273,2]
[418969662,1774691447115,-23.82171104,0.00022273,2]
[418969663,1774691447255,-170.90621662,0.00022273,2]
[418969664,1774691447264,-201.93286099,0.00022273,2]
[418969665,1774691447273,-209.40437684,0.00022273,2]
[418969666,1774691447282,-217.15233878,0.00022273,2]
[418969667,1774691447291,-56.2660286,0.00022273,2]
[418969668,1774691447309,-168.92094672,0.00022273,2]
[418969669,1774691447318,-233.51889341,0.00022273,2]
[418969670,1774691447327,-242.15909246,0.00022273,2]
[418969671,1774691447336,-251.11897888,0.00022273,2]
[418969672,1774691447345,-260.4103811,0.00022273,2]
[418969673,1774691447354,-270.0455652,0.00022273,2]
[418969674,1774691447364,-2150.738,0.00022273,2]
[418969675,1774691447373,-206.26667878,0.00022273,2]
[418969676,1774691447382,-487.0,0.00022273,10]
[418969677,1774691447391,-2030.296672,0.00022328,2]
[418969678,1774691447400,-557.5788265,0.00022328,2]
[418969679,1774691447411,-150.443,0.00022371,2]
[418969680,1774691447420,-150.472,0.00022371,2]
[418969681,1774691447430,-2105.41764886,0.00022383,2]
[418969682,1774691447440,-578.20924308,0.00022383,2]
[418969683,1774691447451,-2183.31810187,0.00022438,2]
[418969684,1774691447460,-599.60298507,0.00022438,2]
[418969685,1774691447470,-1000.0,0.0002248,10]
[418969686,1774691447480,-244.0,0.0002248,10]
[418969687,1774691447491,-1961.96879773,0.00022493,2]
[418969688,1774691447500,-637.0936744,0.00022493,2]
[418969689,1774691447510,-741.93631239,0.00022747,2]
[418969690,1774691447519,-445.202766,0.00022821,2]
[418969691,1774691447528,-537.6845,0.00022821,2]
[418969692,1774691447537,-2230.315306,0.00022821,2]
[418969693,1774691447546,-3148.0,0.000229,2]
[418969694,1774691447556,-324.8269307,0.00022971,2]
[418969695,1774691447566,-304.7332435,0.00022971,2]
[418969696,1774691447576,-324.8269307,0.00022971,2]
[418969697,1774691447587,-324.8269307,0.00022971,2]
[418969698,1774691447598,-324.8269307,0.00022971,2]
[418969699,1774691447608,-270.83333333,0.00023,2]
[418969700,1774691447617,-384.0614725,0.00023017,2]
[418969701,1774691447626,-294.2878491,0.00023102,2]
[418969702,1774691447636,-161.72349687,0.00023138,120]
[418969703,1774691447645,-2312.83697232,0.00023369,2]
[418969704,1774691447654,-55.12173911,0.00023642,2]
[418969734,1774692081197,-1649.97942739,9.801e-05,10]
[418969801,1774692631927,-4138.8213052,8.91e-05,2]
[418969813,1774692632033,-347.005,8.91e-05,2]
[418970228,1774692640749,-514.1736948,8.91e-05,2]
[418970229,1774692640763,-298.0,8.999e-05,2]
[418970230,1774692640773,-8734.39707023,9e-05,2]
[418970231,1774692640782,-300.0,9.179e-05,2]
[418970232,1774692640791,-300.0,9.179e-05,2]
[418970233,1774692640799,-300.0,9.179e-05,2]
[418970234,1774692640809,-300.0,9.179e-05,2]
[418970235,1774692640819,-300.0,9.179e-05,2]
[418970236,1774692640828,-300.0,9.179e-05,2]
[418970237,1774692640837,-300.0,9.179e-05,2]
[418970238,1774692640846,-300.0,9.179e-05,2]
[418970239,1774692640855,-300.0,9.179e-05,2]
[418970240,1774692640864,-300.0,9.179e-05,2]
[418970241,1774692640873,-300.0,9.179e-05,2]
[418970242,1774692640882,-300.0,9.179e-05,2]
[418970243,1774692640891,-300.0,9.179e-05,2]
[418970244,1774692640900,-300.0,9.179e-05,2]
[418970245,1774692640910,-195.42923497,9.179e-05,2]
[418970256,1774692643447,-104.57076503,9.179e-05,2]
[418970257,1774692643458,-600.0,9.362e-05,2]
[418970258,1774692643468,-557.0,9.801e-05,2]
[418970259,1774692643478,-223.70409316,0.0001,2]
[418970260,1774692643488,-720.0,0.00010298,2]
[418970261,1774692643498,-864.0,0.00011327,2]
[418970262,1774692643507,-1000.0,0.0001246,2]
[418970263,1774692643517,-1000.0,0.00013699,2]
[418970264,1774692643526,-1000.0,0.00013706,2]
[418970265,1774692643536,-244.0,0.00013706,2]
[418970266,1774692643546,-1000.0,0.00015077,2]
[418970267,1774692643556,-300.0,0.00017803,2]
[418970268,1774692643566,-446.0,0.00017804,2]
[418970269,1774692643576,-900.0,0.00017804,2]
[418970270,1774692643585,-177.1319022,0.0001847,2]
[418970271,1774692643595,-173.0,0.0001937,3]
[418970272,1774692643604,-500.0,0.000205,2]
[418970273,1774692643614,-295.28682733,0.00021325,60]
[418970274,1774692643624,-2150.738,0.00021853,2]
[418970275,1774692643633,-214.927,0.00021866,2]
[418970276,1774692643643,-642.0,0.00021866,2]
[418970277,1774692643653,-2197.0,0.00021866,2]
[418970278,1774692643662,-1062.97,0.00022,2]
[418970279,1774692643672,-403.85375398,0.00022273,2]
[418970280,1774692643682,-1318.99788869,0.00022273,2]